bitfinex/quotes_ETHUSD_20240730
["timestamp","ask_amount","ask_price","bid_price","bid_amount"]
[1722302122669,0.64136565,3338.5,3337.9,2.3967]
[1722302124504,0.64136565,3338.5,3337.7,4.69925]
[1722302124505,2.39636,3338.4,3337.7,4.69925]
[1722302124813,0.09115411,3338.3,3337.7,4.69925]
[1722302125374,2.39644,3338.3,3337.7,2.3024]
[1722302125662,2.48763294,3338.2,3337.7,2.3024]
[1722302126681,0.09113294,3338.2,3337.6,2.39693]
[1722302128078,2.48763294,3338.2,3337.6,2.39693]
[1722302129315,0.09113294,3338.2,3338.0,2.39663]
[1722302129520,7.28363281,3338.6,3338.0,2.39663]
[1722302129681,0.09099894,3338.5,3338.0,2.39663]
[1722302131260,0.09099894,3338.5,3338.3,2.39638]
[1722302133231,9.67955281,3339.0,3338.3,2.39638]
[1722302133442,0.09111179,3338.4,3338.3,2.39638]
[1722302133650,0.55,3338.9,3338.3,2.39638]
[1722302133948,1.02295528,3338.8,3338.3,2.39638]
[1722302134143,0.09111179,3338.8,3338.3,2.39638]
[1722302135727,0.09111179,3338.8,3338.6,2.39621]
[1722302135936,2.39583,3339.2,3338.4,4.79265]
[1722302136149,0.09117879,3338.7,3338.4,2.3963]
[1722302136348,2.39583,3339.2,3338.4,2.3963]
[1722302136642,0.09117879,3338.6,3338.4,2.3963]
[1722302136962,0.09117879,3338.5,3338.4,2.3963]
[1722302137320,2.39583,3339.2,3338.5,2.39625]
[1722302137552,0.09117879,3339.1,3338.5,2.39625]
[1722302138070,2.48703879,3339.1,3338.5,2.39625]
[1722302139245,0.09117879,3339.1,3338.5,2.39625]
[1722302139550,21.84934281,3339.3,3338.6,2.39621]
[1722302139900,0.09120346,3339.0,3338.7,2.39613]
[1722302140098,19.45363281,3339.3,3338.8,2.52719555]
[1722302140382,19.45363281,3339.3,3338.9,2.45586407]
[1722302140543,0.09120699,3339.2,3338.9,0.55221048]
[1722302140943,19.45363281,3339.3,3338.9,0.55221048]
[1722302141174,0.09120699,3339.1,3339.0,2.39592]
[1722302141378,19.45363281,3339.3,3339.1,2.3958]
[1722302141887,3.64735679,3339.7,3338.9,2.94814048]
[1722302142181,2.39556,3339.5,3338.8,2.4673]
[1722302143313,1.25192679,3339.6,3338.8,2.4673]
[1722302143734,3.64750679,3339.5,3338.9,0.05989219]
[1722302143923,3.64750679,3339.5,3338.8,4.86332]
[1722302144207,3.64756679,3339.4,3338.8,2.4673]
[1722302145081,2.39572,3339.3,3338.3,4.77581]
[1722302145289,2.39586,3339.1,3338.3,5.943049]
[1722302145486,2.39586,3339.1,3338.3,4.77581]
[1722302145694,2.39586,3339.1,3338.5,2.39628]
[1722302146090,1.25192679,3339.2,3338.3,4.77581]
[1722302146091,1.25192679,3339.2,3338.7,2.39613]
[1722302146285,4.68144,3339.4,3339.0,2.39592]
[1722302146286,1.25192679,3339.4,3339.0,2.39592]
[1722302146518,1.25192679,3339.5,3339.0,2.39592]
[1722302146889,1.25192679,3339.5,3338.9,2.4882]
[1722302147229,1.25192679,3339.5,3338.9,4.88418]
[1722302147605,3.64749679,3339.5,3338.6,2.39619]
[1722302147826,1.25192679,3339.3,3338.8,2.39607]
[1722302148503,1.25492819,3339.4,3338.9,2.39598]
[1722302148910,1.9329532,3339.5,3338.6,4.88439]
[1722302149218,1.25492819,3339.4,3338.6,4.88439]
[1722302149431,1.25492819,3339.3,3338.5,2.39627]
[1722302149595,2.99255134,3339.2,3338.5,2.39627]
[1722302149793,4.24771959,3339.2,3338.5,2.39627]
[1722302150021,3.65100825,3339.2,3338.6,2.39619]
[1722302150725,1.25516825,3339.2,3338.6,2.39619]
[1722302151624,3.65094825,3339.2,3338.6,2.39619]
[1722302151977,1.25516825,3339.2,3338.6,2.39619]
[1722302152220,1.25516825,3339.2,3338.7,2.39613]
[1722302152430,1.25516825,3339.2,3337.8,3.0]
[1722302152431,0.09134446,3339.1,3338.1,2.2759]
[1722302152628,2.39599,3338.9,3338.2,2.39649]
[1722302152798,1.25516825,3339.0,3338.3,0.05990964]
[1722302152998,0.09130923,3338.8,3338.2,2.39649]
[1722302153212,3.65102825,3339.1,3338.2,2.39649]
[1722302153396,0.09130923,3338.7,3338.2,2.39649]
[1722302153607,1.25516825,3339.0,3338.2,2.39649]
[1722302153820,0.09130923,3338.6,3338.4,2.39634]
[1722302153990,1.25516825,3339.0,3338.4,2.39634]
[1722302154202,0.09130923,3338.5,3338.4,2.39634]
[1722302154403,1.25516825,3339.0,3338.4,2.39634]
[1722302154598,0.09130923,3338.5,3338.4,2.39634]
[1722302154937,0.09130923,3338.5,3338.1,4.67246]
[1722302155229,2.39608,3338.8,3338.1,4.67246]
[1722302155532,0.09127749,3338.7,3338.1,4.67246]
[1722302155886,2.48741749,3338.7,3338.1,2.2759]
[1722302156121,0.61385857,3338.6,3338.1,2.2759]
[1722302156298,1.86902682,3338.6,3338.1,2.2759]
[1722302156494,0.09125636,3338.5,3338.1,2.2759]
[1722302156696,0.09125636,3338.5,3336.6,0.61670229]
[1722302156697,2.39636,3338.4,3337.7,2.39681]
[1722302156897,1.25516825,3338.4,3337.5,4.70304]
[1722302157123,3.65166825,3338.2,3337.6,2.39693]
[1722302157328,3.63898514,3338.2,3337.2,2.3972]
[1722302157552,3.63898514,3338.2,3337.3,2.39713]
[1722302157553,3.65303514,3338.0,3337.3,2.39713]
[1722302157882,0.09116116,3337.9,3337.3,2.39713]
[1722302158385,0.09116116,3337.9,3337.4,2.39706]
[1722302158917,1.3475463,3337.9,3337.4,2.39706]
[1722302159288,0.09116116,3337.9,3337.0,2.3061]
[1722302159524,3.7442863,3337.9,3337.2,2.39721]
[1722302159737,4.75367407,3337.9,3337.2,2.39721]
[1722302159939,1.25638514,3337.8,3337.2,2.39721]
[1722302160397,2.48804116,3337.7,3336.8,2.39749]
[1722302160599,2.39698,3337.6,3336.8,2.39749]
[1722302160800,4.52545912,3337.6,3336.8,2.39749]
[1722302161001,2.48801598,3337.5,3336.8,2.39749]
[1722302161424,2.48801598,3337.5,3336.2,2.39789]
[1722302161425,2.39722,3337.2,3336.4,2.39773]
[1722302161727,2.39722,3337.2,3336.1,2.398]
[1722302161728,2.39744,3336.9,3336.1,2.398]
[1722302161927,0.70492853,3336.8,3336.1,2.398]
[1722302162189,3.10243853,3336.8,3336.1,2.398]
[1722302162372,2.39763,3336.7,3335.8,4.78935]
[1722302162557,2.39763,3336.7,3335.7,2.39828]
[1722302162558,2.3977,3336.6,3335.9,2.39814]
[1722302162863,2.3977,3336.6,3335.4,2.3912]
[1722302162864,0.09047335,3336.6,3336.0,2.39807]
[1722302163069,0.09047335,3336.6,3336.1,0.05994834]
[1722302163279,0.09047335,3336.6,3336.5,2.39772]
[1722302163562,11.53882039,3337.3,3336.8,2.39748]
[1722302163766,11.08530003,3337.3,3336.8,2.39748]
[1722302164080,12.34048761,3337.3,3336.5,2.39768]
[1722302164226,11.08530003,3337.3,3336.5,2.39768]
[1722302164422,11.08530003,3337.3,3336.8,2.3975]
[1722302164725,1.63065021,3337.2,3336.5,2.39772]
[1722302164948,4.02787021,3337.2,3336.5,2.39772]
[1722302165125,2.39729,3337.1,3336.3,4.82456]
[1722302165354,2.39729,3337.1,3336.1,2.398]
[1722302165355,2.3082,3337.0,3336.1,2.398]
[1722302165521,2.3082,3337.0,3336.0,2.39806]
[1722302165522,2.39759,3336.7,3336.0,2.39806]
[1722302165950,3.29508402,3336.9,3336.0,2.39806]
[1722302166166,1.4050644,3336.8,3336.0,2.39806]
[1722302166373,3.8025844,3336.8,3336.0,2.39806]
[1722302166526,2.39759,3336.7,3335.9,2.4192]
[1722302166727,2.39759,3336.7,3335.8,2.39822]
[1722302166969,2.39759,3336.7,3335.9,2.39813]
[1722302167123,0.94059084,3336.7,3335.9,2.39814]
[1722302167329,0.09017341,3336.6,3336.3,2.39784]
[1722302167739,0.09017341,3336.6,3336.1,2.39796]
[1722302168076,3.29504402,3336.9,3336.1,2.39796]
[1722302168280,0.09006751,3336.5,3335.9,2.39814]
[1722302168443,2.39765,3336.6,3335.9,2.39814]
[1722302168629,0.09006751,3336.4,3335.9,2.39814]
[1722302168873,2.94765,3336.6,3335.9,2.39814]
[1722302169143,2.94765,3336.6,3335.7,2.39829]
[1722302169454,0.93117685,3336.5,3335.8,2.39822]
[1722302170593,3.32889685,3336.5,3335.8,2.39822]
[1722302171365,3.32889685,3336.5,3335.6,2.39836]
[1722302171366,2.3978,3336.4,3335.6,2.39836]
[1722302171732,0.08997925,3336.3,3335.5,2.3822]
[1722302171930,0.84110934,3336.5,3335.8,2.39817]
[1722302172130,0.08997925,3336.4,3335.5,2.62042]
[1722302172329,0.08997925,3336.4,3335.9,2.3981]
[1722302172647,2.94765,3336.6,3335.8,2.39821]
[1722302172850,2.94765,3336.6,3335.9,2.39815]
[1722302172851,0.08997925,3336.3,3335.9,2.39815]
[1722302173033,2.94765,3336.6,3335.9,2.39815]
[1722302173233,0.08997925,3336.2,3335.9,2.39815]
[1722302173473,0.68975206,3336.5,3335.9,2.39815]
[1722302174081,0.08997925,3336.4,3335.9,2.39815]
[1722302174840,0.08997925,3336.4,3336.0,2.39806]
[1722302175196,0.08997925,3336.4,3335.7,2.39829]
[1722302175197,0.55,3336.3,3335.7,2.39829]
[1722302175488,0.71238738,3336.4,3335.7,2.39829]
[1722302175489,0.08997925,3336.4,3336.0,2.39807]
[1722302175679,0.08985568,3336.2,3336.0,2.39807]
[1722302175884,0.55,3336.6,3335.8,2.39819]
[1722302175885,0.86534734,3336.5,3335.8,2.39819]
[1722302176179,0.86534734,3336.5,3335.9,2.39814]
[1722302176416,0.08985568,3336.4,3335.9,2.39814]
[1722302177106,0.08985568,3336.4,3336.0,2.39806]
[1722302178187,0.08985568,3336.4,3335.6,0.05995133]
[1722302178188,0.08985568,3336.4,3336.1,2.39799]
[1722302178509,0.08985568,3336.4,3336.2,2.39787]
[1722302178727,0.08985568,3336.4,3336.3,2.39786]
[1722302179011,0.08985568,3336.4,3335.9,2.39814]
[1722302179012,0.08984861,3336.4,3335.9,2.39814]
[1722302179174,0.08984861,3336.4,3336.2,2.39788]
[1722302179372,7.28363281,3337.0,3336.6,2.39761]
[1722302179568,2.2718,3337.4,3336.6,2.39764]
[1722302179773,2.2718,3337.4,3336.6,2.6433982]
[1722302180004,2.2718,3337.4,3336.1,2.2977]
[1722302180005,2.2718,3337.4,3336.3,2.39779]
[1722302180215,2.3973,3337.1,3336.4,2.39778]
[1722302180591,2.39737,3337.0,3336.1,4.6957]
[1722302180992,2.39737,3337.0,3336.2,2.3979]
[1722302181417,2.39744,3336.9,3336.2,2.3979]
[1722302181596,3.429744,3336.8,3335.9,2.39813]
[1722302181920,2.39758,3336.7,3335.9,2.39813]
[1722302182137,0.55,3336.6,3335.9,2.39813]
[1722302182425,0.08972158,3336.5,3336.1,2.39794]
[1722302182725,0.08972158,3336.5,3335.5,5.6366]
[1722302182919,0.08972158,3336.5,3336.1,2.39794]
[1722302183682,0.08972158,3336.5,3336.2,2.39793]
[1722302183880,0.08972158,3336.5,3336.3,2.39785]
[1722302184228,0.08961567,3336.4,3336.3,2.39785]
[1722302184591,2.39742,3337.0,3336.3,2.39785]
[1722302184798,0.08961567,3336.4,3336.3,2.39785]
[1722302185088,1.520645,3336.9,3336.1,2.4628]
[1722302185303,0.08964391,3336.4,3336.3,4.79572]
[1722302185519,2.64,3337.2,3336.5,2.39767]
[1722302185724,0.564,3337.1,3336.5,2.39767]
[1722302185892,0.65364391,3337.1,3336.5,2.39767]
[1722302186091,0.65364391,3337.1,3336.6,2.39764]
[1722302187007,0.65364391,3337.1,3336.4,2.39779]
[1722302187417,0.65364391,3337.1,3336.5,2.39772]
[1722302187718,0.80402539,3337.0,3336.5,2.39772]
[1722302187925,0.80402539,3337.0,3336.5,2.3977]
[1722302188119,0.80402539,3337.0,3336.1,2.4628]
[1722302188120,2.64,3337.2,3336.8,2.39744]
[1722302188321,0.08964391,3336.9,3336.6,2.39762]
[1722302188527,2.64,3337.2,3336.6,2.39762]
[1722302188705,0.0897922,3336.8,3336.6,2.39762]
[1722302188906,2.64,3337.2,3336.6,2.39762]
[1722302189115,0.0897922,3336.7,3336.6,2.39762]
[1722302189280,0.49894,3337.1,3336.6,2.39762]
[1722302189481,0.08979573,3336.7,3336.4,2.39778]
[1722302189687,0.49894,3337.1,3336.4,2.39778]
[1722302189905,0.08979573,3336.6,3336.4,2.39778]
[1722302190109,0.49894,3337.1,3336.4,2.39778]
[1722302190306,0.08979573,3336.5,3336.4,2.39778]
[1722302190627,0.08980632,3336.5,3336.2,2.39788]
[1722302190790,0.788556,3337.0,3336.2,2.39788]
[1722302190983,0.08981693,3336.4,3336.2,2.39788]
[1722302191214,7.83363281,3336.9,3336.2,2.39787]
[1722302191435,7.83363281,3336.9,3336.1,2.39799]
[1722302191436,1.15184688,3336.8,3336.3,2.39785]
[1722302191637,1.24166381,3336.8,3336.3,2.39785]
[1722302191949,2.4806,3336.7,3336.0,2.39803]
[1722302192130,1.48512488,3336.6,3336.0,2.39803]
[1722302192333,1.48512488,3336.6,3336.2,2.39788]
[1722302192530,0.08979222,3336.6,3336.0,2.39806]
[1722302192732,0.08979222,3336.6,3336.1,2.39796]
[1722302193119,0.08979222,3336.6,3336.2,2.39793]
[1722302193320,0.08979222,3336.6,3336.0,2.39806]
[1722302194218,0.08979222,3336.6,3336.1,2.39796]
[1722302194412,0.08979222,3336.6,3336.2,2.39793]
[1722302194956,0.08979222,3336.6,3336.3,2.39786]
[1722302195757,0.08979222,3336.6,3336.1,2.39799]
[1722302195958,7.83363281,3336.9,3336.1,2.869399]
[1722302196162,0.08966512,3336.8,3336.3,2.39781]
[1722302197032,2.48717512,3336.8,3336.1,2.39799]
[1722302197612,2.48717512,3336.8,3336.2,2.39792]
[1722302197807,2.48717512,3336.8,3336.0,2.39808]
[1722302198009,2.3984,3336.4,3335.8,2.3982]
[1722302198321,0.08965806,3336.3,3335.8,2.3982]
[1722302198838,0.08965806,3336.3,3336.0,2.39806]
[1722302199039,0.08965806,3336.3,3336.1,2.398]
[1722302199249,0.08965806,3336.3,3336.2,2.39793]
[1722302199556,4.7959,3336.8,3336.1,2.398]
[1722302199753,4.7959,3336.8,3336.3,2.39786]
[1722302199754,0.08950621,3336.7,3336.3,2.39786]
[1722302199960,3.92494388,3336.8,3336.3,2.39786]
[1722302200177,0.08950621,3336.7,3336.3,2.39786]
[1722302200332,3.92494388,3336.8,3336.3,2.39786]
[1722302200532,0.08950621,3336.7,3336.3,2.39786]
[1722302200728,3.92494388,3336.8,3336.3,2.39786]
[1722302200929,0.08950621,3336.7,3336.4,2.39777]
[1722302201143,2.3984,3336.8,3336.4,2.39777]
[1722302201318,2.3984,3336.8,3336.2,2.39788]
[1722302201518,0.08956624,3336.7,3336.2,2.39788]
[1722302201856,0.08956624,3336.7,3336.3,2.39785]
[1722302202167,2.3984,3336.8,3336.4,2.39772]
[1722302202364,0.08956624,3336.7,3336.5,2.39771]
[1722302202533,1.24990695,3337.1,3336.6,2.39758]
[1722302202715,7.21060594,3337.2,3336.7,2.39757]
[1722302202716,0.08956624,3337.0,3336.7,2.39757]
[1722302202917,4.24990695,3337.2,3336.7,2.39757]
[1722302203261,3.13144513,3337.1,3336.7,2.39757]
[1722302203460,1.24990695,3337.0,3336.7,2.39757]
[1722302204059,0.08960861,3336.9,3336.7,2.39757]
[1722302204358,0.08960861,3336.9,3336.3,2.4204]
[1722302204359,1.33951556,3336.9,3336.3,2.39784]
[1722302204562,1.25786707,3336.7,3336.1,4.79595]
[1722302204770,0.08984868,3336.6,3336.1,2.39796]
[1722302204933,0.08984868,3336.6,3335.9,4.69603]
[1722302204934,1.89771575,3336.6,3335.9,2.39809]
[1722302205120,1.25786707,3336.4,3335.9,2.39809]
[1722302205470,1.34762749,3336.3,3335.9,2.39809]
[1722302205955,1.25786707,3336.2,3335.7,2.39828]
[1722302206157,1.34753922,3336.1,3335.6,2.39836]
[1722302206806,1.3483438,3336.1,3335.6,2.39836]
[1722302207310,1.25867165,3336.0,3335.6,2.39836]
[1722302207601,0.08945677,3335.9,3335.7,2.39828]
[1722302208482,1.25867165,3336.0,3335.7,2.39828]
[1722302208664,0.08945677,3335.8,3335.7,2.39828]
[1722302208861,1.25883243,3336.0,3335.5,2.39838]
[1722302209211,5.17841634,3336.5,3335.6,2.39834]
[1722302209212,1.25883243,3335.9,3335.6,2.39834]
[1722302209381,0.0895027,3335.9,3335.7,2.39829]
[1722302210631,0.08947092,3335.8,3335.7,2.39829]
[1722302211329,1.25883243,3336.0,3335.7,2.39829]
[1722302211927,0.08947092,3335.9,3335.8,2.39822]
[1722302212435,0.08947092,3335.9,3335.8,5.276091]
[1722302212632,1.57338791,3336.3,3335.8,5.276091]
[1722302212633,1.25883243,3336.3,3336.0,2.39807]
[1722302212843,1.25883243,3336.2,3336.0,2.39807]
[1722302212990,12.02575281,3336.7,3336.1,2.398]
[1722302213193,0.47028239,3336.8,3336.1,2.398]
[1722302213194,1.25852093,3336.3,3336.1,2.398]
[1722302213392,1.25852093,3336.3,3335.8,4.68238]
[1722302213393,1.25852093,3336.5,3336.4,2.39779]
[1722302213634,1.25852093,3336.6,3336.2,2.39793]
[1722302213836,1.25852093,3336.6,3336.5,2.39772]
[1722302214198,1.57315116,3336.7,3336.5,2.39772]
[1722302214392,1.57315116,3336.7,3336.6,2.39765]
[1722302214632,1.57315116,3336.8,3336.7,2.39757]
[1722302214825,1.57315116,3336.9,3336.7,2.39757]
[1722302215143,1.25824198,3336.8,3336.7,2.39757]
[1722302216095,7.28363281,3337.2,3336.7,2.39757]
[1722302216338,1.25810219,3336.8,3336.7,2.39757]
[1722302217647,1.25810219,3336.8,3336.7,4.79514]
[1722302217843,7.28363281,3337.2,3336.9,2.39736]
[1722302217844,1.25810219,3337.1,3336.9,2.39736]
[1722302218137,1.25810219,3337.1,3336.6,2.39759]
[1722302218465,1.25810219,3337.1,3336.9,2.39742]
[1722302218961,1.2578437,3337.1,3336.9,2.39742]
[1722302219145,1.2578437,3337.1,3336.7,2.39757]
[1722302219640,1.2578437,3337.1,3336.8,2.39749]
[1722302219856,1.2578437,3337.1,3336.5,2.39771]
[1722302219857,1.2578437,3337.0,3336.5,2.39771]
[1722302220029,1.2578437,3336.9,3336.5,2.39771]
[1722302220204,1.2578437,3336.9,3336.6,2.39764]
[1722302221046,1.2578437,3337.0,3336.6,2.39764]
[1722302221208,1.2578437,3336.9,3336.6,2.39764]
[1722302221546,2.39714,3337.3,3336.6,2.39764]
[1722302221759,1.2577248,3336.9,3336.3,2.39786]
[1722302221903,1.2577248,3336.7,3336.3,2.39786]
[1722302222107,1.2577248,3336.6,3336.3,2.39786]
[1722302222339,1.2577248,3336.5,3336.3,2.39786]
[1722302223554,1.2577248,3336.6,3336.4,2.39779]
[1722302223753,1.2577248,3336.7,3336.4,2.39779]
[1722302224068,1.2577248,3336.8,3336.7,2.39757]
[1722302224208,1.57235451,3337.0,3336.9,2.39743]
[1722302224409,1.25775355,3337.0,3336.9,2.39743]
[1722302224630,7.28363281,3337.7,3337.1,2.39722]
[1722302224949,1.25764277,3337.3,3337.1,2.39722]
[1722302225162,1.25764277,3337.4,3336.4,2.269]
[1722302225327,1.57205346,3337.5,3336.4,5.269]
[1722302225328,1.25764277,3337.3,3336.4,5.269]
[1722302225648,1.25764277,3337.4,3337.1,2.39727]
[1722302225819,1.25764277,3337.4,3337.3,2.39714]
[1722302226024,1.25764277,3337.5,3337.3,2.39714]
[1722302226432,1.25764277,3337.5,3337.1,2.39727]
[1722302227154,8.85568627,3337.7,3337.1,2.39727]
[1722302227155,1.25764277,3337.4,3337.1,2.39727]
[1722302227451,0.09007808,3337.3,3337.1,2.39727]
[1722302227658,1.25764277,3337.4,3337.1,2.39727]
[1722302227867,0.09007808,3337.2,3337.1,2.39727]
[1722302228027,1.25764277,3337.4,3337.1,2.39727]
[1722302228219,0.0903075,3337.2,3336.9,2.39741]
[1722302228570,1.25764277,3337.4,3336.9,2.39741]
[1722302228725,0.09030397,3337.1,3336.9,2.39741]
[1722302228926,1.25764277,3337.4,3337.1,2.39729]
[1722302230030,1.25764277,3337.4,3336.9,2.39743]
[1722302230231,1.25764277,3337.5,3337.0,2.39734]
[1722302230969,8.94388532,3337.7,3337.0,2.39734]
[1722302231169,1.2564388,3337.5,3337.1,2.39728]
[1722302231534,1.2564388,3337.6,3337.1,2.39728]
[1722302233464,10.20032412,3337.7,3337.3,2.39713]
[1722302233666,8.94388532,3337.7,3337.3,2.39713]
[1722302234100,1.2564388,3337.8,3337.1,2.3457]
[1722302234260,1.2564388,3337.9,3337.6,2.39692]
[1722302234457,1.2564388,3338.0,3337.7,2.39685]
[1722302234658,1.2564388,3338.1,3337.7,2.39685]
[1722302234861,1.2564388,3338.2,3337.6,2.39689]
[1722302235172,1.2564388,3338.2,3337.9,2.3967]
[1722302235383,1.2564388,3338.3,3337.6,2.39689]
[1722302235585,0.94120552,3338.1,3337.2,2.39718]
[1722302235761,0.94120552,3338.2,3337.6,2.39692]
[1722302235953,0.94120552,3338.1,3337.4,2.39702]
[1722302236152,1.56969947,3338.4,3337.9,2.39666]
[1722302236153,0.94120552,3338.2,3337.9,2.39666]
[1722302236358,0.94120552,3338.3,3338.1,2.39657]
[1722302236804,0.94120552,3338.3,3337.9,2.39666]
[1722302236955,2.04630318,3338.3,3337.8,2.39678]
[1722302237521,2.39657,3338.1,3337.4,2.39707]
[1722302237797,2.39676,3337.9,3337.1,2.39724]
[1722302237999,3.33796552,3337.9,3337.2,2.3972]
[1722302238164,2.06466707,3337.8,3336.8,2.39748]
[1722302238526,2.397,3337.5,3336.8,2.39748]
[1722302238656,0.94120552,3337.7,3336.8,2.39749]
[1722302238657,0.94120552,3337.6,3336.8,2.39749]
[1722302238862,3.88817552,3337.6,3336.8,2.39749]
[1722302239062,2.39701,3337.5,3336.8,2.39749]
[1722302239259,2.3973,3337.1,3336.3,2.39781]
[1722302239502,0.94120552,3337.1,3335.9,2.39815]
[1722302239722,0.94120552,3337.2,3335.5,3.7679]
[1722302239922,2.3973,3337.1,3336.4,2.39778]
[1722302240200,0.70779443,3337.0,3336.4,2.39778]
[1722302240761,4.04642995,3337.0,3336.2,2.39793]
[1722302241874,0.94120552,3336.9,3336.2,2.39793]
[1722302242273,0.94120552,3336.9,3336.3,2.39786]
[1722302242479,0.0869628,3336.8,3336.3,2.39786]
[1722302242703,2.3977,3336.6,3335.8,2.39817]
[1722302242862,2.39791,3336.3,3335.1,7.34]
[1722302243063,2.39807,3336.1,3335.4,2.39848]
[1722302243382,4.09363295,3336.1,3335.4,2.39848]
[1722302243699,2.48479442,3336.0,3335.2,2.39865]
[1722302243859,2.48479442,3336.0,3335.3,2.39856]
[1722302244071,3.42599994,3336.0,3335.3,2.39856]
[1722302244475,2.48479442,3336.0,3335.3,2.39856]
[1722302244716,3.21008349,3336.0,3335.3,2.39856]
[1722302245030,0.81199349,3336.0,3335.4,2.39851]
[1722302245322,0.81199349,3336.0,3335.0,3.0]
[1722302245323,0.08670442,3336.0,3335.5,2.39842]
[1722302245489,3.33916552,3336.2,3335.5,2.39842]
[1722302245677,0.08635043,3335.9,3335.5,2.39842]
[1722302245880,3.33916552,3336.2,3335.5,2.39842]
[1722302246217,0.08623713,3335.8,3335.5,2.39842]
[1722302246534,0.08623713,3335.7,3335.3,2.39858]
[1722302246887,4.03857495,3336.1,3335.4,2.3985]
[1722302247072,0.08623713,3335.6,3335.4,2.3985]
[1722302247275,4.03857495,3336.1,3335.4,2.3985]
[1722302247514,0.08623713,3335.5,3335.4,2.3985]
[1722302247725,0.69933943,3336.1,3335.5,2.39839]
[1722302247875,7.28363281,3336.2,3335.5,2.39839]
[1722302248076,8.22483833,3336.2,3335.3,2.39858]
[1722302248553,2.39802,3336.1,3335.3,2.39858]
[1722302248687,4.52923523,3336.0,3334.9,2.39885]
[1722302248879,4.52923523,3336.0,3334.7,2.399]
[1722302248880,2.39843,3335.6,3334.7,2.399]
[1722302249278,2.94845,3335.5,3334.7,2.399]
[1722302251018,2.39852,3335.4,3334.7,2.399]
[1722302252385,0.55,3335.5,3334.8,2.39892]
[1722302252731,1.21388738,3335.5,3334.6,2.39908]
[1722302252911,2.3986,3335.3,3334.6,2.39908]
[1722302253111,2.39865,3335.2,3334.4,2.39921]
[1722302253296,0.55,3335.5,3334.4,2.39921]
[1722302253297,2.39873,3335.1,3334.4,2.39921]
[1722302254214,2.39873,3335.1,3334.5,2.39915]
[1722302254417,2.39859,3335.3,3334.6,2.39907]
[1722302254590,0.55,3335.2,3334.6,2.39907]
[1722302255928,2.94865,3335.2,3334.4,2.39922]
[1722302256128,2.39873,3335.1,3334.4,2.39922]
[1722302256419,2.39873,3335.1,3334.5,2.39915]
[1722302256619,2.933461,3335.1,3334.5,2.39915]
[1722302256999,2.933461,3335.1,3334.4,2.39923]
[1722302257321,2.39887,3334.9,3334.2,2.39936]
[1722302257682,0.08595733,3334.8,3334.2,2.39936]
[1722302258778,0.08595733,3334.8,3334.0,4.89911]
[1722302258779,2.39901,3334.7,3334.0,2.39951]
[1722302258980,0.79849673,3334.6,3334.0,2.39951]
[1722302259195,0.79849673,3334.6,3333.8,2.39965]
[1722302259196,3.19758673,3334.6,3333.8,2.39965]
[1722302259405,0.08595733,3334.5,3333.8,2.39965]
[1722302259836,0.08595733,3334.5,3333.9,2.39958]
[1722302260340,0.08595733,3334.5,3334.3,2.39926]
[1722302260516,0.08595733,3334.5,3333.6,2.39975]
[1722302260517,2.3988,3335.0,3334.4,2.39923]
[1722302260687,2.3988,3335.0,3333.7,2.39969]
[1722302260688,0.08537989,3334.4,3333.7,2.39969]
[1722302260896,0.55,3335.0,3334.4,2.39921]
[1722302261234,0.534731,3335.1,3334.4,2.39921]
[1722302261416,0.08537989,3334.9,3334.6,2.39903]
[1722302261727,2.4981,3335.2,3334.6,2.39903]
[1722302262032,0.08537989,3334.8,3334.6,2.39903]
[1722302262189,2.4981,3335.2,3334.6,2.39903]
[1722302262720,0.08533737,3335.1,3334.6,2.39903]
[1722302263027,0.08533737,3335.1,3334.4,2.3992]
[1722302263328,4.01063339,3335.1,3334.4,2.3992]
[1722302264042,2.3988,3335.0,3334.0,2.3995]
[1722302264217,2.39895,3334.8,3334.1,2.39944]
[1722302264543,0.6354118,3334.7,3334.1,2.39944]
[1722302265217,0.6354118,3334.7,3334.2,2.39937]
[1722302265422,0.6354118,3334.7,3334.3,2.39929]
[1722302265624,0.6354118,3334.7,3334.0,2.39947]
[1722302265926,0.60841621,3334.6,3334.0,2.39947]
[1722302266130,0.69378548,3334.6,3334.0,2.39947]
[1722302266338,0.69378548,3334.6,3333.8,0.05998563]
[1722302266535,0.08536927,3334.6,3334.2,2.39932]
[1722302266750,0.08536927,3334.6,3334.3,2.3993]
[1722302266954,3.04976034,3334.9,3334.1,2.3994]
[1722302267148,0.08536217,3334.5,3334.2,2.39935]
[1722302267354,0.55,3334.8,3334.3,2.3993]
[1722302267656,0.08536217,3334.4,3334.3,2.3993]
[1722302267813,9.68236281,3335.1,3334.5,2.39915]
[1722302268020,4.42072428,3335.0,3334.3,2.3993]
[1722302268232,2.39887,3334.9,3334.3,2.3993]
[1722302269034,2.57190428,3335.0,3334.4,2.39922]
[1722302269444,2.57190428,3335.0,3333.7,2.39969]
[1722302269445,7.28363281,3335.1,3334.7,2.39895]
[1722302270562,7.28363281,3335.1,3334.5,2.39913]
[1722302270871,9.68237281,3335.1,3334.5,2.39913]
[1722302271173,7.28363281,3335.1,3334.6,2.39908]
[1722302271465,7.28363281,3335.1,3334.7,2.39901]
[1722302271931,7.28363281,3335.1,3334.5,2.39911]
[1722302272325,0.0854791,3335.0,3334.5,2.39911]
[1722302272569,0.0854791,3335.0,3334.6,2.39908]
[1722302272969,0.0854791,3335.0,3334.8,2.39889]
[1722302273156,2.4981,3335.2,3334.8,2.39889]
[1722302273327,0.08552162,3334.9,3334.8,2.39889]
[1722302273528,7.28363281,3335.5,3335.4,2.39851]
[1722302273729,2.3408,3336.1,3335.6,2.39834]
[1722302273933,2.39808,3336.0,3335.4,2.39851]
[1722302274262,2.3408,3336.1,3335.2,2.39865]
[1722302274263,2.39822,3335.8,3335.2,2.39865]
[1722302274451,2.3983,3335.7,3335.0,2.39879]
[1722302275509,0.713703,3335.8,3335.1,2.39872]
[1722302276093,0.713703,3335.8,3335.2,2.39865]
[1722302276266,3.111923,3335.8,3335.2,2.39865]
[1722302276466,2.39822,3335.8,3335.2,2.39865]